Cogmind - Beta 13 @@@ ROGUE MODE // 2024.04.19 @ 22:48:04 Player: Gabe+Kate4EVR Result: Destroyed by Y-45 Defender with Heavy Assault Rifle Performance ------------- Evolutions (1) 500 Regions Visited (3) 600 Robots Destroyed (77) 385 Value Destroyed (1573) 1573 Prototype IDs (1) 20 Alien Tech Used (0) 0 Bonus (91) 91 TOTAL SCORE: 3169 Bonus ------- High Alert Combat Kills 91 Cogmind --------- Core Integrity 0/400 Matter 272/300 Energy 98/100 System Corruption 1% Temperature Cool (9) Movement Walking (120) Location -9/Storage Parts ------- > --- POWER (1) -------- (None) > --- PROPULSION (4) --- Aluminum Leg Aluminum Leg Improved Aluminum Leg > --- UTILITY (2) ------ Medium Storage Unit > --- WEAPON (2) ------- Heavy Assault Rifle Autogun > --- INVENTORY (10) --- Light Treads High-capacity Matter Pod (200) Heavy Armor Plating Beam Cannon Beam Cannon Beam Cannon Assault Rifle Light Assault Rifle Heavy Assault Rifle Peak State ------------ > --- POWER ------------ (None) > --- PROPULSION ------- Light Treads Aluminum Leg Aerolev Unit Aerolev Unit > --- UTILITY ---------- Medium Storage Unit Melee Analysis Suite > --- WEAPON ----------- Heavy Assault Rifle Katana > --- INVENTORY -------- Ion Engine High-capacity Matter Pod Heavy Armor Plating Beam Cannon Beam Cannon Beam Cannon Assault Rifle Light Assault Rifle [Rating: 20] Favorites ----------- Power Ion Engine Engine Ion Engine Propulsion Aluminum Leg Treads Light Treads Leg Aluminum Leg Wheel Wheel Hover Unit Aerolev Unit Utility Medium Storage Unit Device Sensor Array Storage Medium Storage Unit Processor Melee Analysis Suite Protection Hardened Light Armor Plating Weapon Shotgun Energy Gun Beam Rifle Energy Cannon Beam Cannon Ballistic Gun Shotgun Ballistic Cannon Improved Light Cannon Slashing Weapon Katana Build | -11 -10 -9 -9 ------- Run | Yrd Mat Mat Sto Slots Evolved 2 | . . 2 . Power . | . . . . Propulsion 2 | . . 2 . Utility . | . . . . Weapon . | . . . . Parts Attached 68 | 5 11 36 16 Power 7 | 1 1 4 1 Engine 7 | 1 1 4 1 Core . | . . . . Reactor . | . . . . Propulsion 23 | 1 1 12 9 Treads 3 | . . 3 . Leg 14 | 1 1 5 7 Wheel 3 | . . 1 2 Hover 3 | . . 3 . Flight . | . . . . Utility 10 | 1 3 5 1 Device 2 | . 1 1 . Storage 2 | 1 1 . . Processor 2 | . . 2 . Hackware . | . . . . Protection 4 | . 1 2 1 Artifact . | . . . . Weapon 28 | 2 6 15 5 Energy Gun 3 | . . 3 . Energy Cannon 4 | . 4 . . Ballistic Gun 18 | 2 2 9 5 Ballistic Cannon 2 | . . 2 . Launcher . | . . . . Special Weapon . | . . . . Impact Weapon . | . . . . Slashing Weapon 1 | . . 1 . Piercing Weapon . | . . . . Special Melee Weapon . | . . . . Unidentified Prototypes 1 | . . 1 . Parts Lost 13 | . . 9 4 Power 3 | . . 1 2 Propulsion 7 | . . 6 1 Utility 2 | . . 1 1 Weapon 1 | . . 1 . Highest Loss Streak 5 | . . 5 3 To Critical Strikes . | . . . . Average Slot Usage (%) 82 | . 88 75 90 Engine 9 | . 14 8 7 Treads 1 | . . 1 . Leg 19 | . 18 15 33 Hover 5 | . . 7 5 Device 2 | . 9 . . Storage 11 | . 14 11 11 Processor 3 | . . 6 1 Protection 4 | . 2 4 7 Energy Gun 1 | . . 1 . Energy Cannon 4 | . 15 . . Ballistic Gun 14 | . 12 13 21 Slashing Weapon 2 | . . 4 . Naked Turns . | . . . . Heaviest Build 29 | 14 24 29 22 Greatest Support 43 | 10 20 40 43 Greatest Overweight (x) 2 | 1 2 2 1 Average Overweight (x) . | . 1 . . Largest Inventory Capacity 10 | 8 10 10 10 Average Capacity 9 | 6 9 10 10 Most Carried 10 | 4 10 10 10 Average Carried 8 | 1 7 9 9 Final Capacity 10 | 8 10 10 10 Final Carried 10 | 4 10 10 10 Class Distribution -------------------- 63% | Mutant 36% | Scavenger-Mutant Dominant Class ---------------- Mutant | -10/Materials Mutant | -9/Materials Scavenger-Mutant | -9/Storage Resources | -11 -10 -9 -9 ----------- Run | Yrd Mat Mat Sto Matter Collected 2126 | 228 440 766 692 Remotely . | . . . . Salvage Created 2665 | . 435 1353 877 Parts 170 | . 27 87 56 Haulers Intercepted 2 | . 1 1 . Recyclers Shooed 5 | . 1 4 . Parts Field Recycled . | . . . . Retrieved Matter . | . . . . Parts Self-Destructed . | . . . . Prevented . | . . . . Kills | -11 -10 -9 -9 ------- Run | Yrd Mat Mat Sto Combat Hostiles Destroyed 50 | . 8 25 17 Melee 7 | . . 7 . Guns 37 | . 5 15 17 Cannons 6 | . 3 3 . Classes Destroyed 13 | . 9 3 1 Worker 6 | . 1 4 1 Builder 3 | . 1 1 1 Tunneler 2 | . 1 1 . Hauler 2 | . 1 1 . Recycler 8 | . 1 5 2 Mechanic 1 | . 1 . . Operator 1 | . . 1 . Watcher 4 | . 1 2 1 Swarmer 19 | . 6 11 2 Grunt 18 | . 2 7 9 Brawler 1 | . . . 1 Duelist 1 | . . 1 . Sentry 11 | . . 6 5 Best Kill Streak 6 | . 5 6 6 Combat Bots Only 5 | . 3 5 3 Max Kills in Single Turn 2 | . 1 2 2 Gunslinging 1 | . . 1 . Exploded . | . . . . Melee 1 | . . 1 . Uniques/NPCs Destroyed . | . . . . Combat | -11 -10 -9 -9 -------- Run | Yrd Mat Mat Sto Hostile Shots Fired 296 | . 43 167 86 Missed 87 | . 18 42 27 Damage Taken 2669 | . 212 1616 841 Core 451 | . 48 324 79 Absorbed by Shields . | . . . . Regen/Repaired (Parts) 50 | . . 50 . Core Remaining (%) 90 | 100 80 . . Volleys Fired 195 | . 30 99 66 Largest 2 | . 2 2 2 Hottest 120 | . 120 95 46 Shots Fired 346 | . 60 163 123 Gun 305 | . 36 146 123 Cannon 41 | . 24 17 . Launcher . | . . . . Special . | . . . . Kinetic 303 | . 36 144 123 Thermal 43 | . 24 19 . Explosive . | . . . . Electromagnetic . | . . . . Robot Hit Streak 12 | . 10 8 12 Robot Miss Streak 6 | . 6 6 3 Penetration Max . | . . . . Secondary Targets 5 | . 1 3 1 Max Gunslinging Chain 1 | . 1 1 1 Shots Hit Robots 241 | . 38 125 78 Core Hits 111 | . 20 54 37 Critical Kills . | . . . . Critical Parts Destroyed 2 | . . 2 . Critical Strikes 4 | . . 4 . Burn 1 | . . 1 . Destroy 2 | . . 2 . Sever 1 | . . 1 . Melee Attacks 36 | . . 36 . Impact . | . . . . Slashing 36 | . . 36 . Piercing . | . . . . Sneak Attacks 4 | . . 4 . Combat Hostiles . | . . . . Follow-up Attacks . | . . . . Damage Inflicted 4268 | . 625 2458 1185 Guns 2838 | . 330 1323 1185 Cannons 558 | . 295 263 . Explosions . | . . . . Melee 872 | . . 872 . Ramming . | . . . . Kinetic 2949 | . 330 1434 1185 Thermal 447 | . 295 152 . Explosive . | . . . . Electromagnetic . | . . . . Impact . | . . . . Slashing 872 | . . 872 . Piercing . | . . . . Highest Corruption 1 | . . . 1 Average Corruption 1 | . . . 1 Corruption Purged . | . . . . Corruption Blocked . | . . . . Effects 1 | . . . 1 Message Errors 1 | . . . 1 Overload Shots . | . . . . Overflow Damage 160 | . 4 156 . Projectiles 4 | . 4 . . Explosions . | . . . . Melee 156 | . . 156 . Knockbacks 1 | . . 1 . Impact . | . . . . Kinetic 1 | . . 1 . Secondary . | . . . . Self-Inflicted Damage . | . . . . Shots . | . . . . Rammed . | . . . . Targets Rammed . | . . . . Kicked . | . . . . Crushed . | . . . . Highest Temperature 594 | . 300 594 24 Average Temperature 118 | . 88 205 7 Received Heat Transfer 801 | . 36 519 246 Effects 10 | . . 10 . Shutdowns 3 | . . 3 . Energy Bleed 2 | . . 2 . Matter Decay 1 | . . 1 . Short Circuit 2 | . . 2 . Damage (minor) 1 | . . 1 . Damage (major) 1 | . . 1 . Siege Activations . | . . . . Robots Corrupted . | . . . . Combat Hostiles . | . . . . Parts Fried . | . . . . Impact Corruptions . | . . . . Robots Melted . | . . . . Combat Hostiles . | . . . . Parts Melted 2 | . 2 . . Heat Transferred 1086 | . 629 457 . Parts Sabotaged . | . . . . Parts Stolen . | . . . . Parts Stripped . | . . . . Power Chain Reactions . | . . . . Alert | -11 -10 -9 -9 ------- Run | Yrd Mat Mat Sto Peak Influence 583 | . 227 404 583 Initial 133 | . . . 133 Average 211 | . 70 278 333 Maximum Alert Level 2 | . 1 2 2 Low Security (%) 40 | 100 87 12 21 Level 1 53 | . 12 87 40 Level 2 5 | . . . 38 Level 3 . | . . . . Level 4 . | . . . . Level 5 . | . . . . High Security . | . . . . Max Security . | . . . . Squads Dispatched 7 | . 1 2 4 Investigation 3 | . . 1 2 Extermination . | . . . . Reinforcement 3 | . 1 1 1 Assault . | . . . . Garrison 1 | . . . 1 Intercept . | . . . . Searches Triggered . | . . . . Construction Impeded . | . . . . Haulers Reinforced . | . . . . Active Scanning Responses . | . . . . Cargo Convoy Interrupts . | . . . . Stealth | -11 -10 -9 -9 --------- Run | Yrd Mat Mat Sto Distress Signals 7 | . . 5 2 Communications Jammed . | . . . . Distress Signals . | . . . . Times Spotted 92 | . 19 49 24 Peak Tracking Total 7 | . 5 7 7 Tactical Retreats 7 | . . 4 3 Traps | -11 -10 -9 -9 ------- Run | Yrd Mat Mat Sto Traps Triggered 5 | . . 1 4 Indirectly . | . . . . Trap Hack Attempts . | . . . . Triggered . | . . . . Disarmed . | . . . . Reprogrammed . | . . . . Reused . | . . . . Traps Extracted . | . . . . Installed . | . . . . Triggered . | . . . . Machines | -11 -10 -9 -9 ---------- Run | Yrd Mat Mat Sto Machines Disabled . | . . . . Max in Single Turn . | . . . . Machines Repaired . | . . . . Machines Dismantled . | . . . . Machines Sabotaged . | . . . . Overloaded Fab Kills . | . . . . Hacking | -11 -10 -9 -9 --------- Run | Yrd Mat Mat Sto Machines Accessed 4 | . 1 2 1 Terminals 1 | . 1 . . Fabricators . | . . . . Repair Stations 1 | . . 1 . Recycling Units 1 | . . 1 . Scanalyzers . | . . . . Garrison Access 1 | . . . 1 Total Hacks 8 | . 1 4 3 Successful 4 | . 1 3 . Failed 4 | . . 1 3 Catastrophic 1 | . . . 1 Database Lockouts . | . . . . Manual . | . . . . Terminals 1 | . 1 . . Fabricators . | . . . . Repair Stations 3 | . . 3 . Recycling Units 1 | . . 1 . Scanalyzers . | . . . . Garrison Access 3 | . . . 3 Terminal Hacks 1 | . 1 . . Branch Access Points 1 | . 1 . . Fabricator Hacks . | . . . . Repair Station Hacks 2 | . . 2 . Scan Component 1 | . . 1 . Repair 1 | . . 1 . Recycling Unit Hacks 1 | . . 1 . Report Inventory 1 | . . 1 . Scanalyzer . | . . . . Garrison Access Hacks . | . . . . Unauthorized Hacks . | . . . . Terminals . | . . . . Fabricators . | . . . . Repair Stations . | . . . . Recycling Units . | . . . . Scanalyzers . | . . . . Garrison Access . | . . . . Data Cores Recovered . | . . . . Used . | . . . . Hacking Detections 1 | . . . 1 Full Trace Events 1 | . . . 1 Feedback Events . | . . . . Feedback Blocked . | . . . . Robot Schematics Acquired . | . . . . Robots Built . | . . . . Authchips . | . . . . Time . | . . . . Total Robot Build Rating . | . . . . Part Schematics Acquired . | . . . . Parts Built . | . . . . Authchips . | . . . . Time . | . . . . Total Part Build Rating . | . . . . Parts Repaired 1 | . . 1 . Time 32 | . . 32 . Parts Recycled . | . . . . Recycled Matter . | . . . . Retrieved Matter . | . . . . Retrieved Components . | . . . . Parts Scanalyzed . | . . . . Part Schematics Acquired . | . . . . Parts Damaged . | . . . . Bothacking | -11 -10 -9 -9 ------------ Run | Yrd Mat Mat Sto Used RIF Installer . | . . . . Robots Hacked . | . . . . Non-combat . | . . . . Combat . | . . . . Robot Hacks Applied . | . . . . Relay Couplers Released . | . . . . Fabnet Peak Effective % . | . . . . Robots Rewired . | . . . . Allies Hacked . | . . . . Hacks Repelled . | . . . . Allies | -11 -10 -9 -9 -------- Run | Yrd Mat Mat Sto Total Allies . | . . . . Largest Group . | . . . . Highest-Rated Group . | . . . . Highest-Rated Ally . | . . . . Total Orders . | . . . . Ally Attacks . | . . . . Total Damage . | . . . . Kills . | . . . . Allies Corrupted . | . . . . Allies Melted . | . . . . Intel | -11 -10 -9 -9 ------- Run | Yrd Mat Mat Sto Robot Analysis Total . | . . . . Derelict Logs Recovered . | . . . . Drone Launches . | . . . . Drone Recoveries . | . . . . Exploration | -11 -10 -9 -9 ------------- Run | Yrd Mat Mat Sto Turns Passed 3301 | 190 940 1693 478 Spaces Moved 1553 | 142 397 805 209 Core 80 | 80 . . . Treads 92 | . . 92 . Legs 1095 | 62 397 451 185 Wheels 33 | . . 9 24 Hover 253 | . . 253 . Flight . | . . . . Fastest Speed 50 | 50 120 95 90 Average Speed 157 | 125 203 149 118 Slowest Speed 260 | 190 260 190 190 Overloaded Moves . | . . . . Propulsion Burnouts . | . . . . Robots Hopped . | . . . . Cave-ins Triggered . | . . . . Exploration Rate (%) 33 | 5 45 43 42 Regions Visited 3 Branch Regions 1 Pre-discovered Areas . | . . . . Known Exits Taken . | . . . . Unknown Exits Taken 3 | 1 1 1 . Scrap Searched . | . . . . Spaces Dug . | . . . . Terrain Destroyed 1 | . . 1 . Melee . | . . . . Projectile 1 | . . 1 . AOE . | . . . . Terrain Rammed . | . . . . Walls Destroyed . | . . . . Machines Disabled . | . . . . Actions | -11 -10 -9 -9 --------- Run | Yrd Mat Mat Sto Total 2029 | 151 471 1074 333 Wait 115 | 1 12 73 29 Move 1550 | 141 396 804 209 Hop . | . . . . Pick Up 14 | 4 9 1 . Fast Attach 45 | 5 6 26 8 Attach 4 | . 2 1 1 Detach 7 | . 3 2 2 Swap 19 | . 3 9 7 Drop 44 | . 10 23 11 Fire 195 | . 30 99 66 Melee 36 | . . 36 . Ram . | . . . . Kick . | . . . . Crush . | . . . . Escape Stasis . | . . . . Rewire . | . . . . Trap . | . . . . Miscellaneous . | . . . . Route ------- -11/Scrapyard -10/Materials (discovered 2 exits: *Mat / Min) -9/Materials (discovered 2 exits: [*Min] / *Sto) -9/Storage History --------- Turn | Location | Event 7 | -11/Scrapyard | Discovered new exit (range 15) 191 | -11/Scrapyard | Entered Materials 329 | -10/Materials | Build established: Mutant 484 | -10/Materials | Discovered new exit (range 13) 695 | -10/Materials | Identified exit to Mines 1131 | -10/Materials | Entered another Materials area 1131 | -9/Materials | Evolved 2 slots: Propulsion x2 1357 | -9/Materials | Repaired Hrd. Light Armor Plating 1766 | -9/Materials | Discovered new exit (range 15) 1816 | -9/Materials | Lost 5 parts (1p3n1u) 1876 | -9/Materials | Build established: Scavenger-Mutant 1932 | -9/Materials | Core integrity fell below 50% 2058 | -9/Materials | Discovered new exit (range 12) 2549 | -9/Materials | Core integrity fell below 20% 2795 | -9/Materials | Build established: Mutant 2824 | -9/Materials | Entered Storage 2857 | -9/Storage | Garrison activated, responded to threat 3166 | -9/Storage | Build established: Scavenger-Mutant 3302 | -9/Storage | Destroyed by Y-45 Defender with Heavy Assault Rifle Last Messages --------------- 03250_ U-05 Engineer builds a Door. 03252_ Destroyed Lgt. Ion Engine. 03252_ S-10 Pest destroyed. 03252_ Lgt. Ion Engine destroyed. 03255_ Y-45 Defender destroyed. 03257_ K-01 Serf collects debris. 03259_ Acquired 55 matter. 03260_ Acquired 62 matter. 03262_ K-01 Serf collects debris. 03262_ U-05 Engineer destroyed. 03262_ K-01 Serf collects debris. 03263_ Acquired 30 matter. 03271_ K-01 Serf collects debris. 03276_ Triggered Explosive Trap. 03276_ An explosion rips through the floor. 03276_ Aluminum Leg destroyed. 03277_ Acquired 10 matter. 03285_ Triggered Explosive Trap. 03285_ An explosion rips through the floor. 03295_ The unstable cave ceiling collapses. Map ----- +----------------------------------------------------+ | | | | | | | | | | | | | | | | | | | | | | | | | | | | | | | | | | | | | | | | | ???????????#### # ##????????????????????? | | ???????????#%%% #????????????????????? | | ??????????##%%% #????????????????????? | | ??????????# %%% ##????????????????????? | | ??????????# ##????????????????????? | | ??????????# @!#?????????????????????? | | ??????????## Y###?????????????????????? | | ???????????### Y#######?????????????????? | | ?????????????# ??????????? | | ?????????????# #######?????????????????? | | ?????????????##*##???????????????????????? | | ??????????????#!#????????????????????????? | | ??????????????#=###??????????????????????? | | ??????????????#[#T#??????????????????????? | | ??????????????# #["!!#???????????????????? | | ??????????????#!/==!!#???????????????????? | | ????????##+##?#%#!"!!#???????????????????? | | ?????#### *###[######???????????????????? | | ?????# [ [[!#????????????????????????? | | ?????# ## !##=##????####????????????????? | | ?????#+####### #???? ?????????????????? | | ?????# # #???? """?????????????????? | | ?????# """"" # #??? """?????????????????? | | ?????# """""[# #### """?????????????????? | | ?????# """"" + + #???????????????? | | ?????# *# # | #???????????????? | | ????#######"## #??????????????????????? | | ????# *[= #??????????????????????? | | ??????##+# ###????????#?????????????? | | ??????? ?# #????????? #?????#######?? | +----------------------------------------------------+ Best States ------------- Heat Dissipation 28 Energy Generation 12 Energy Capacity 265 Matter Stores 300 Matter Capacity 300 Sight Range 18 Robot Scan Range 14 Terrain Scan Density 10 Additional Mass Support 6 Armor Coverage 150 Evasion (%) 55 Melee Accuracy 5 Recoil Reduction 2 Item Schematics ----------------- None Robot Schematics ------------------ None Fabricated ------------ Nothing Alien Tech Used ----------------- None Achievements -------------- None Challenges ------------ None Game ------ Seed MetafieldAntigravSpoofer Manual? 0 Play Time 00:26:21 Cumulative 105.3 hours Start 2024.04.19 @ 17:18:17 End 2024.04.19 @ 22:48:04 Sessions 3 Manual Loads 0 Difficulty Rogue Special Mode None Game No. 217 Rogue 217 Adventurer 0 Explorer 0 Win Type - Total 0 Types 0/0/0/0/0/0/0/0/0 Lore% 32 Gallery% 50 Achievement% 35 Wizard Run 0 Options --------- Layout 0 ASCII 0 Keyboard 1 Movement Numpad Keybinds 0 Fullscreen 2 Font 18/X11 Map View 76x50 Zoom Use 0% Tactical HUD 1 Map Filters NONE Filters NONE Steam 1 RUN: 4f261ea4-e836-4484-b196-c05b01ec7f20